bitfinex/quotes_BTCUSD_20220211
["timestamp","ask_amount","ask_price","bid_price","bid_amount"]
[1644616144956,0.27886672,42545.0,42541.0,0.00102224]
[1644616145157,0.32886672,42545.0,42542.0,0.058798]
[1644616145399,0.00042306,42543.0,42542.0,0.058798]
[1644616146301,0.32886672,42545.0,42542.0,0.058798]
[1644616146701,0.05042305,42545.0,42542.0,0.058798]
[1644616146901,0.00042305,42545.0,42542.0,0.117596]
[1644616147402,0.51183599,42549.0,42542.0,0.117596]
[1644616147403,0.58065971,42549.0,42542.0,0.117596]
[1644616147702,0.58065971,42549.0,42542.0,0.058798]
[1644616147703,0.3495556,42546.0,42542.0,0.058798]
[1644616147902,0.4995556,42546.0,42542.0,0.058798]
[1644616148706,0.49913255,42546.0,42542.0,0.058798]
[1644616148903,0.55835956,42546.0,42542.0,0.058798]
[1644616149747,0.55835956,42546.0,42544.0,0.00102219]
[1644616149951,0.55793648,42546.0,42544.0,0.00102219]
[1644616150150,0.55835956,42546.0,42544.0,0.00102219]
[1644616150350,0.49955563,42546.0,42544.0,0.00102219]
[1644616150550,0.15042308,42546.0,42544.0,0.05982219]
[1644616150952,0.00042308,42546.0,42544.0,0.05982219]
[1644616151153,0.5493,42559.0,42544.0,0.05982219]
[1644616151154,0.0001,42557.0,42546.0,0.10276248]
[1644616151361,0.00038317,42547.0,42546.0,0.51445323]
[1644616151554,0.00038317,42547.0,42546.0,0.155681]
[1644616151753,0.00038317,42547.0,42546.0,0.35705299]
[1644616151953,0.00038317,42547.0,42546.0,0.89997145]
[1644616152352,0.0001,42562.0,42553.0,0.3197847]
[1644616152552,0.0001,42562.0,42557.0,0.117541]
[1644616152798,0.62678101,42566.0,42557.0,0.117541]
[1644616152799,0.32351535,42563.0,42558.0,0.058771]
[1644616153098,0.0001,42562.0,42558.0,0.058771]
[1644616153500,0.0001,42565.0,42558.0,0.058771]
[1644616153700,0.00038312,42562.0,42561.0,0.117539]
[1644616154799,0.0001,42567.0,42562.0,0.38070419]
[1644616155000,0.0001,42567.0,42563.0,0.058764]
[1644616155001,0.00038311,42564.0,42563.0,0.058764]
[1644616155802,0.01,42569.0,42563.0,0.058764]
[1644616156002,0.01,42569.0,42567.0,0.31919815]
[1644616156404,0.01,42569.0,42567.0,0.058759]
[1644616156652,0.01,42569.0,42566.0,0.058759]
[1644616157055,0.01,42569.0,42566.0,0.117518]
[1644616158256,0.08877882,42567.0,42566.0,0.117518]
[1644616158453,0.01175179,42565.0,42562.0,0.164438]
[1644616159055,0.01175179,42565.0,42562.0,0.117538]
[1644616159253,0.32881809,42564.0,42562.0,0.117538]
[1644616159456,0.01175179,42565.0,42562.0,0.117538]
[1644616159655,0.0001,42563.0,42562.0,0.117538]
[1644616159854,0.01175179,42565.0,42562.0,0.117538]
[1644616160804,0.01175179,42565.0,42563.0,0.27102378]
[1644616161003,0.01175179,42565.0,42562.0,0.117538]
[1644616161205,0.01175179,42565.0,42563.0,0.058762]
[1644616161803,0.01175179,42565.0,42562.0,0.058764]
[1644616162206,0.01175179,42565.0,42557.0,0.235099]
[1644616162207,0.28702853,42563.0,42557.0,0.235099]
[1644616162406,0.0001,42562.0,42557.0,0.235099]
[1644616163007,0.0001,42562.0,42558.0,0.058774]
[1644616163207,0.0001,42562.0,42558.0,0.15627421]
[1644616163408,0.0003876,42562.0,42558.0,0.117547]
[1644616164253,0.0001,42564.0,42558.0,0.117547]
[1644616164452,0.01185179,42565.0,42558.0,0.117547]
[1644616164652,0.0003876,42562.0,42558.0,0.117547]
[1644616165053,0.0712093,42562.0,42558.0,0.117547]
[1644616165255,0.0001,42561.0,42558.0,0.117547]
[1644616165657,0.0001,42564.0,42558.0,0.117547]
[1644616165857,0.0003876,42562.0,42558.0,0.117547]
[1644616166657,0.01185179,42565.0,42558.0,0.117547]
[1644616166859,0.0003876,42562.0,42558.0,0.117547]
[1644616167058,0.0004876,42562.0,42558.0,0.117547]
[1644616167920,0.0001,42562.0,42558.0,0.117547]
[1644616168120,0.0004876,42562.0,42558.0,0.11743782]
[1644616168522,0.0003876,42562.0,42558.0,0.11743782]
[1644616168721,0.0003876,42562.0,42560.0,7.03e-05]
[1644616168722,0.00060909,42562.0,42560.0,7.03e-05]
[1644616169022,0.00022149,42562.0,42560.0,7.03e-05]
[1644616170724,0.13485403,42561.0,42560.0,7.03e-05]
[1644616171749,0.05,42561.0,42560.0,7.03e-05]
[1644616172151,0.00022149,42562.0,42560.0,7.03e-05]
[1644616173851,0.00022149,42562.0,42559.0,0.00142352]
[1644616174750,0.00022149,42562.0,42559.0,7.021e-05]
[1644616177910,0.0003876,42563.0,42559.0,7.021e-05]
[1644616178109,0.0003876,42563.0,42560.0,0.0469]
[1644616178309,0.01175179,42565.0,42563.0,0.00077519]
[1644616178710,0.01175179,42565.0,42564.0,0.09444584]
[1644616179057,0.01175179,42565.0,42564.0,0.25023488]
[1644616179254,0.01175179,42565.0,42564.0,0.30899088]
[1644616180455,0.01175179,42565.0,42564.0,0.25023488]
[1644616181455,0.01175179,42565.0,42564.0,0.61579035]
[1644616181654,0.01175179,42565.0,42564.0,0.66269035]
[1644616183504,0.0001,42576.0,42564.0,0.66269035]
[1644616183505,0.0001,42576.0,42571.0,0.058749]
[1644616183706,0.0001,42576.0,42572.0,0.5969]
[1644616183905,0.00180404,42579.0,42572.0,0.0469]
[1644616184504,0.00180404,42579.0,42575.0,0.33010098]
[1644616184703,0.00146134,42589.0,42577.0,0.058734]
[1644616184909,0.00146134,42589.0,42584.0,0.29417934]
[1644616185105,0.00146134,42589.0,42576.0,0.164368]
[1644616185106,0.00146134,42589.0,42578.0,0.3]
[1644616185406,0.00136134,42589.0,42576.0,0.0469]
[1644616185604,0.00136134,42589.0,42586.0,0.058734]
[1644616185806,0.35428403,42589.0,42586.0,0.058734]
[1644616186203,0.0001,42588.0,42586.0,0.058734]
[1644616186854,0.0001,42588.0,42587.0,0.058735]
[1644616188553,0.00136134,42589.0,42587.0,0.058735]
[1644616188955,0.00136134,42589.0,42588.0,0.09317836]
[1644616189357,0.00136134,42589.0,42588.0,0.10339134]
[1644616189556,0.00136134,42589.0,42587.0,0.176194]
[1644616189756,0.00136134,42589.0,42587.0,0.17754645]
[1644616190158,0.00136134,42589.0,42587.0,0.23627545]
[1644616190803,0.00136134,42589.0,42587.0,0.35371815]
[1644616191608,0.00136134,42589.0,42588.0,0.28934086]
[1644616192005,0.00136134,42589.0,42587.0,0.35371815]
[1644616192206,0.00136134,42589.0,42587.0,0.17754645]
[1644616194260,0.00136134,42589.0,42587.0,0.23627445]
[1644616195861,0.00136134,42589.0,42587.0,0.17754645]
[1644616196062,0.39063453,42589.0,42587.0,0.17754645]
[1644616196360,0.0001,42588.0,42587.0,0.06008745]
[1644616199809,0.0001,42588.0,42587.0,0.15754286]
[1644616200413,0.00136134,42589.0,42587.0,0.20754286]
[1644616200611,0.00136134,42589.0,42588.0,0.10139408]
[1644616200813,0.00136134,42589.0,42588.0,0.05]
[1644616201213,0.00136134,42589.0,42588.0,0.32700179]
[1644616201665,0.00136134,42589.0,42588.0,0.38572579]
[1644616203265,0.00136134,42589.0,42588.0,0.32700179]
[1644616203870,0.00136134,42589.0,42588.0,0.32690901]
[1644616209352,0.00136134,42589.0,42580.0,0.0469]
[1644616209353,1.0,42587.0,42574.0,0.39728226]
[1644616209556,0.05,42585.0,42574.0,0.22109726]
[1644616209852,0.1,42586.0,42574.0,0.10365226]
[1644616210053,0.0001,42585.0,42574.0,0.10365126]
[1644616210252,0.058752,42581.0,42574.0,0.04489926]
[1644616210452,0.27164751,42579.0,42574.0,0.04489926]
[1644616210651,0.32164751,42579.0,42574.0,0.04489926]
[1644616210856,0.32164751,42579.0,42575.0,0.05875]
[1644616210857,0.0001,42578.0,42575.0,0.05875]
[1644616211052,0.0001,42578.0,42576.0,0.05875]
[1644616211254,0.0001,42578.0,42576.0,0.1560153]
[1644616212255,0.0001,42578.0,42576.0,0.05875]
[1644616212457,0.93232096,42582.0,42576.0,0.05875]
[1644616212458,0.0001,42581.0,42576.0,0.05875]
[1644616212657,0.0001,42581.0,42576.0,0.117494]
[1644616212658,0.00043439,42579.0,42576.0,0.117494]
[1644616213506,0.38170089,42584.0,42576.0,0.117494]
[1644616213704,0.0001,42583.0,42580.0,0.058744]
[1644616213902,0.0001,42583.0,42580.0,0.117487]
[1644616214103,0.0001,42583.0,42577.0,0.28182767]
[1644616214303,0.0001,42583.0,42574.0,0.62314172]
[1644616214502,0.0001,42583.0,42574.0,0.234972]
[1644616214704,0.0001,42583.0,42576.0,0.06005054]
[1644616214904,0.0001,42583.0,42577.0,0.058749]
[1644616215103,0.00043438,42581.0,42577.0,0.058749]
[1644616215506,0.32920769,42580.0,42577.0,0.058749]
[1644616215705,0.0001,42579.0,42577.0,0.058749]
[1644616215906,0.0001,42579.0,42578.0,0.058747]
[1644616216407,0.0001,42579.0,42578.0,0.108747]
[1644616216656,0.00042123,42580.0,42578.0,0.108747]
[1644616217058,0.00042123,42580.0,42578.0,0.108748]
[1644616217256,0.0001,42582.0,42578.0,0.05]
[1644616217456,0.00042122,42581.0,42578.0,0.058748]
[1644616217758,0.00052122,42581.0,42578.0,0.058748]
[1644616218357,0.0001,42581.0,42578.0,0.058748]
[1644616218759,0.0001,42581.0,42578.0,0.117495]
[1644616218955,0.0001,42581.0,42578.0,0.058748]
[1644616219155,0.0001,42581.0,42576.0,0.00130154]
[1644616219356,0.00029966,42582.0,42577.0,0.05875]
[1644616219357,0.00039966,42582.0,42577.0,0.05875]
[1644616219557,0.05885,42582.0,42579.0,0.00130147]
[1644616219758,0.34755128,42581.0,42579.0,0.00130147]
[1644616219957,0.34797536,42581.0,42579.0,0.00130147]
[1644616220158,0.0001,42580.0,42579.0,0.00130147]
[1644616221414,0.0001,42580.0,42573.0,0.61468063]
[1644616221415,0.0001,42580.0,42576.0,0.11749]
[1644616221608,0.0001,42580.0,42577.0,0.10487936]
[1644616221809,0.00042407,42582.0,42577.0,0.10178682]
[1644616222008,0.0469,42585.0,42578.0,0.058747]
[1644616222210,0.00042408,42581.0,42578.0,0.058747]
[1644616222508,0.00042408,42581.0,42578.0,0.35212287]
[1644616223112,0.00042408,42581.0,42578.0,0.058747]
[1644616223310,0.0001,42583.0,42576.0,0.11749]
[1644616223510,0.00043326,42582.0,42576.0,0.11749]
[1644616223916,0.05918326,42582.0,42576.0,0.11749]
[1644616224169,0.0001,42581.0,42576.0,0.11749]
[1644616224370,0.0001,42581.0,42576.0,0.176239]
[1644616224568,0.0001,42583.0,42577.0,0.058748]
[1644616224769,0.00043327,42581.0,42577.0,0.058748]
[1644616225568,0.0001,42583.0,42578.0,0.117494]
[1644616225569,0.058849,42583.0,42578.0,0.117494]
[1644616225770,0.00043327,42581.0,42578.0,0.117494]
[1644616226767,0.0001,42582.0,42578.0,0.117494]
[1644616227168,0.00052182,42582.0,42578.0,0.117494]
[1644616228005,0.0001,42582.0,42579.0,0.058746]
[1644616228205,0.00042182,42582.0,42580.0,0.058745]
[1644616229305,0.0001,42582.0,42580.0,0.058745]
[1644616229505,0.29612285,42581.0,42577.0,0.15882707]
[1644616229705,0.29612285,42581.0,42576.0,0.058749]
[1644616229706,0.0001,42580.0,42573.0,0.09464819]
[1644616229906,0.0001,42580.0,42575.0,0.05]
[1644616230105,0.0001,42580.0,42573.0,0.14464819]
[1644616230707,0.00042395,42579.0,42573.0,0.14464819]
[1644616230906,0.00042395,42579.0,42574.0,0.09554329]
[1644616231105,0.00042395,42579.0,42575.0,0.05]
[1644616231307,0.00042395,42579.0,42574.0,0.09554329]
[1644616231565,0.0001,42580.0,42573.0,0.27538083]
[1644616231566,0.0001,42580.0,42576.0,0.058752]
[1644616231757,0.058851,42580.0,42576.0,0.058752]
[1644616231954,0.058851,42580.0,42572.0,0.117504]
[1644616231955,0.00042395,42579.0,42572.0,0.117504]
[1644616232159,0.00042395,42579.0,42572.0,0.21141068]
[1644616232454,0.00042395,42579.0,42574.0,0.058754]
[1644616232653,0.00042395,42579.0,42574.0,0.1175059]
[1644616232854,0.058851,42580.0,42574.0,0.1175059]
[1644616233056,0.00052395,42579.0,42574.0,0.1675059]
[1644616233255,0.00052395,42579.0,42574.0,0.1175059]
[1644616233454,0.00042395,42579.0,42574.0,0.058754]
[1644616233855,0.05917695,42579.0,42574.0,0.058754]
[1644616234056,0.05917695,42579.0,42574.0,0.05865886]
[1644616234057,0.0001,42578.0,42574.0,0.05865886]
[1644616234456,0.00042347,42579.0,42574.0,0.05865886]
[1644616234756,0.12088107,42579.0,42574.0,0.3731584]
[1644616234957,0.12088107,42579.0,42574.0,0.4319094]
[1644616235157,0.0001,42578.0,42574.0,0.4319094]
[1644616235609,0.0001,42578.0,42574.0,0.11740986]
[1644616236010,0.0001,42578.0,42574.0,0.058751]
[1644616236211,0.058854,42578.0,42574.0,0.058751]
[1644616236410,0.0001,42577.0,42574.0,0.058751]
[1644616236816,0.00052347,42578.0,42572.0,0.117504]
[1644616237012,0.00052347,42578.0,42572.0,0.2117467]
[1644616237313,0.00052347,42578.0,42572.0,0.26174329]
[1644616237512,0.00052347,42578.0,42572.0,0.10874959]
[1644616237712,0.0001,42578.0,42572.0,0.05874959]
[1644616237912,0.00042358,42577.0,42572.0,0.05874959]
[1644616238114,0.00042358,42577.0,42573.0,0.15412382]
[1644616238313,0.00042358,42577.0,42573.0,0.20412382]
[1644616238514,0.00042358,42577.0,42573.0,0.26286819]
[1644616238714,0.00042358,42577.0,42573.0,0.20412119]
[1644616238913,0.0001,42578.0,42573.0,0.20412119]
[1644616239154,0.00042358,42577.0,42574.0,0.058745]
[1644616239456,0.00042358,42577.0,42574.0,0.108745]
[1644616239654,0.00042358,42577.0,42575.0,0.05874641]
[1644616240054,0.0001,42578.0,42575.0,0.05874641]
[1644616240255,0.00052358,42578.0,42575.0,0.05874641]
[1644616241156,0.0001,42578.0,42575.0,0.05874641]
[1644616241454,0.0001,42578.0,42575.0,0.10874641]
[1644616241855,0.0001,42578.0,42575.0,0.05874641]
[1644616242058,0.0001,42578.0,42573.0,0.0587511]
[1644616242657,0.00052356,42578.0,42573.0,0.0587511]
[1644616243601,0.0001,42578.0,42572.0,0.05875318]
[1644616243799,0.00052356,42578.0,42572.0,0.05875318]
[1644616244401,0.28483854,42575.0,42572.0,0.05875318]
[1644616244604,0.0001,42574.0,42570.0,0.32501675]
[1644616244802,0.0001,42574.0,42570.0,0.05]
[1644616245002,0.0787037,42574.0,42570.0,0.05]
[1644616245201,0.3589646,42573.0,42570.0,0.05]
[1644616245401,0.4089646,42573.0,42569.0,0.09368588]
[1644616245601,0.0001,42572.0,42570.0,0.10875565]
[1644616245802,0.4088646,42573.0,42572.0,0.0002]
[1644616246202,0.3588646,42573.0,42572.0,0.0002]
[1644616246406,0.66613939,42573.0,42572.0,0.0002]
[1644616246665,0.73005863,42573.0,42572.0,0.0002]
[1644616246867,0.57372317,42573.0,42572.0,0.0002]
[1644616247266,1.04410965,42573.0,42572.0,0.0002]
[1644616247765,1.2528787,42573.0,42572.0,0.0002]
[1644616248765,1.2468787,42573.0,42572.0,0.0002]
[1644616251104,1.2469787,42573.0,42572.0,0.0002]
[1644616253306,1.2469787,42573.0,42563.0,0.00077519]
[1644616253307,0.058783,42566.0,42563.0,0.00077519]
[1644616253507,0.05,42564.0,42563.0,0.00077519]
[1644616253806,0.3976585,42564.0,42563.0,0.00077519]
[1644616254063,0.5104585,42564.0,42563.0,0.00077519]
[1644616254257,0.43020694,42557.0,42551.0,0.32175242]
[1644616254555,0.34902571,42556.0,42547.0,0.22091256]
[1644616254956,0.44902571,42556.0,42547.0,0.22091256]
[1644616255656,0.44902571,42556.0,42548.0,0.27365115]
[1644616255855,0.44902571,42556.0,42550.0,0.058786]
[1644616256257,0.39023971,42556.0,42550.0,0.058786]
[1644616256656,0.29023971,42556.0,42550.0,0.058786]
[1644616256858,0.39023971,42556.0,42550.0,0.058786]
[1644616257157,0.39023971,42556.0,42551.0,0.00043124]
[1644616257805,0.29023971,42556.0,42551.0,0.00043124]
[1644616258006,0.39023971,42556.0,42550.0,0.058786]
[1644616258207,0.39023971,42556.0,42551.0,0.00043124]
[1644616258407,0.29023971,42556.0,42551.0,0.05921224]
[1644616258906,0.05,42557.0,42551.0,0.05921224]
[1644616259108,0.15,42557.0,42551.0,0.05921224]
[1644616259306,0.15,42557.0,42551.0,0.058781]
[1644616259507,0.26468686,42556.0,42552.0,0.00043124]
[1644616259806,0.35711669,42554.0,42552.0,0.00043124]
[1644616260210,0.40711669,42554.0,42552.0,0.00043124]
[1644616260417,0.40711669,42554.0,42551.0,0.058781]
[1644616260609,0.40711669,42554.0,42551.0,0.05919441]
[1644616261108,0.05,42554.0,42551.0,0.05919441]
[1644616261310,0.31468686,42556.0,42551.0,0.05919441]
[1644616261568,0.31468686,42556.0,42551.0,0.058781]
[1644616261768,0.31468686,42556.0,42551.0,0.05919441]
[1644616261966,0.05,42556.0,42551.0,0.35515569]
[1644616262367,0.058785,42558.0,42551.0,0.35515569]
[1644616262775,0.058785,42558.0,42551.0,0.058781]
[1644616262970,0.26186695,42555.0,42552.0,0.00041341]
[1644616263171,0.058788,42556.0,42552.0,0.00041341]
[1644616264075,0.058788,42556.0,42551.0,0.058781]
[1644616264272,0.058788,42556.0,42552.0,0.0001521]
[1644616264474,0.41823168,42556.0,42552.0,0.0001521]
[1644616264777,0.058793,42554.0,42552.0,0.0001521]
[1644616264975,0.35470828,42553.0,42552.0,0.0001521]
[1644616265312,0.35470828,42553.0,42545.0,0.0011]
[1644616265313,0.50470828,42553.0,42545.0,0.0011]
[1644616265509,0.35513856,42552.0,42545.0,0.0011]
[1644616265710,0.30403145,42548.0,42545.0,0.0011]
[1644616265909,0.0469,42547.0,42545.0,0.0011]
[1644616266114,0.0469,42547.0,42542.0,0.0022]
[1644616266115,0.75,42545.0,42542.0,0.0022]
[1644616266310,0.0469,42544.0,42542.0,0.0022]
[1644616266512,0.20686464,42543.0,42542.0,0.0022]
[1644616266808,0.25376464,42543.0,42542.0,0.0022]
[1644616267208,0.25376464,42543.0,42542.0,0.0001]
[1644616267209,0.30376464,42543.0,42542.0,0.0001]
[1644616267409,0.47380843,42543.0,42542.0,0.0001]
[1644616267809,0.40376464,42543.0,42542.0,0.0001]
[1644616268209,0.6871314,42543.0,42542.0,0.0001]
[1644616270959,0.6871314,42543.0,42524.0,0.00021562]
[1644616270960,0.058817,42542.0,42524.0,0.00021562]
[1644616271163,0.05,42536.0,42528.0,0.0022]
[1644616271362,0.0469,42535.0,42528.0,0.0022]
[1644616271559,0.38300441,42534.0,42528.0,0.0022]
[1644616271759,0.0469,42533.0,42528.0,0.0022]
[1644616271959,0.33572245,42532.0,42528.0,0.0022]
[1644616272159,0.0469,42531.0,42528.0,0.0022]
[1644616272360,0.05,42530.0,42528.0,0.0022]
[1644616272560,0.0969,42530.0,42528.0,0.0022]
[1644616272810,0.0969,42530.0,42528.0,0.00264931]
[1644616273612,0.0969,42530.0,42528.0,0.0022]
[1644616274914,0.34679448,42530.0,42528.0,0.0022]
[1644616275316,0.0469,42530.0,42528.0,0.0022]
[1644616275717,0.1,42535.0,42534.0,0.24900098]
[1644616275916,0.21628233,42535.0,42534.0,0.24900098]
[1644616276118,0.49929957,42535.0,42534.0,0.24900098]
[1644616276316,0.72065465,42535.0,42534.0,0.24900098]
[1644616276758,1.08419067,42535.0,42534.0,0.24900098]
[1644616277562,1.13419067,42535.0,42534.0,0.24900098]
[1644616278561,0.80117343,42535.0,42534.0,0.24900098]
[1644616278961,0.80105786,42535.0,42534.0,0.24900098]
[1644616280311,0.80105786,42535.0,42534.0,0.23400098]
[1644616280709,0.79605786,42535.0,42534.0,0.23400098]
[1644616282113,1.05488486,42535.0,42534.0,0.23400098]
[1644616282314,1.05488486,42535.0,42532.0,0.0004493]
[1644616282315,0.117657,42533.0,42532.0,0.0004493]
[1644616282512,0.07293454,42524.0,42521.0,0.00516256]
[1644616283112,0.33184784,42523.0,42521.0,0.00516256]
[1644616283415,0.22308786,42522.0,42521.0,0.00336492]
[1644616283814,0.27308786,42522.0,42521.0,0.00336492]
[1644616284665,0.05,42522.0,42521.0,0.00336492]
[1644616285364,0.52874784,42523.0,42521.0,0.00336492]
[1644616286267,0.58757984,42523.0,42521.0,0.00336492]
[1644616286866,0.54067984,42523.0,42521.0,0.00336492]
[1644616287170,0.05,42523.0,42521.0,0.00336492]
[1644616287369,0.5459,42533.0,42521.0,0.00336492]
[1644616287566,0.1,42528.0,42521.0,0.09728694]
[1644616287812,0.499,42533.0,42521.0,0.09728694]
[1644616287813,0.06993997,42527.0,42521.0,0.09728694]
[1644616288013,0.38392607,42523.0,42521.0,0.00336492]
[1644616288414,0.67782173,42529.0,42521.0,0.00336492]
[1644616288415,0.21539015,42529.0,42522.0,0.00040846]
[1644616288615,0.05,42529.0,42522.0,0.00040846]
[1644616288812,0.1669,42532.0,42522.0,0.00040846]
[1644616289212,0.058821,42531.0,42523.0,0.058823]
[1644616289412,0.31759107,42530.0,42524.0,0.25555755]
[1644616289613,0.36759107,42530.0,42525.0,0.00040845]
[1644616289812,0.46759107,42530.0,42525.0,0.00040845]
[1644616290414,0.058824,42529.0,42525.0,0.00040845]
[1644616290616,0.058824,42529.0,42521.0,0.00336492]
[1644616290814,0.058824,42529.0,42525.0,0.00041119]
[1644616291013,0.58524707,42530.0,42525.0,0.00041119]
[1644616291661,0.058826,42528.0,42521.0,0.00336492]
[1644616291863,0.31235541,42523.0,42521.0,0.00336492]
[1644616292260,0.46235541,42523.0,42521.0,0.00336492]
[1644616293264,0.058833,42522.0,42521.0,0.00336492]
[1644616295712,1.1,42521.0,42519.0,0.0022]
[1644616295912,1.258847,42521.0,42519.0,0.0022]
[1644616296311,1.708847,42521.0,42509.0,0.0011]
[1644616296514,1.708847,42521.0,42511.0,0.34102254]
[1644616296515,0.34912039,42517.0,42511.0,0.34102254]
[1644616296710,0.25590742,42515.0,42511.0,0.34102254]
[1644616296911,0.35280742,42515.0,42511.0,0.00362292]
[1644616297310,0.45280742,42515.0,42511.0,0.00362292]
[1644616297711,0.45280742,42515.0,42511.0,0.00198001]
[1644616298011,0.45280742,42515.0,42514.0,0.00241551]
[1644616298211,0.45280742,42515.0,42512.0,0.00041563]
[1644616298412,0.07842213,42513.0,42507.0,0.0022]
[1644616298611,0.0469,42512.0,42507.0,0.0022]
[1644616298812,0.058866,42510.0,42508.0,0.00241553]
[1644616299075,0.37865024,42509.0,42508.0,0.00241553]
[1644616299461,0.47865024,42509.0,42508.0,0.00241553]
[1644616300963,0.47865024,42509.0,42508.0,0.0022]
[1644616302163,0.47865024,42509.0,42501.0,0.0122]
[1644616302164,0.15,42507.0,42501.0,0.0122]
[1644616302366,0.47472538,42506.0,42501.0,0.0122]
[1644616302563,0.32547258,42505.0,42501.0,0.0122]
[1644616302819,0.47237258,42505.0,42501.0,0.0122]
[1644616303217,0.47237258,42505.0,42501.0,0.01]
[1644616303419,0.47237258,42505.0,42499.0,0.0022]
[1644616303420,1.05,42503.0,42499.0,0.0022]
[1644616303618,0.2174321,42501.0,42499.0,0.0022]
[1644616303818,0.2884902,42500.0,42499.0,0.0022]
[1644616304221,1.05,42499.0,42498.0,0.0001]
[1644616304418,0.1,42499.0,42493.0,0.0011]
[1644616304620,0.11972122,42498.0,42493.0,0.0011]
[1644616304922,0.11972122,42498.0,42489.0,0.0011]
[1644616304923,1.05,42497.0,42489.0,0.0011]
[1644616305121,0.0969,42496.0,42489.0,0.0011]
[1644616305520,0.07264713,42490.0,42489.0,0.0011]
[1644616305720,0.058883,42491.0,42489.0,0.0011]
[1644616305919,0.0469,42490.0,42489.0,0.0011]
[1644616306320,0.2174321,42501.0,42491.0,0.07301282]
[1644616306321,0.6708,42500.0,42491.0,0.07301282]
[1644616306565,0.0469,42499.0,42491.0,0.07301282]
[1644616306763,0.058868,42498.0,42491.0,0.07301282]
[1644616306959,0.0469,42499.0,42491.0,0.07301282]
[1644616306960,0.43422517,42497.0,42491.0,0.07301282]
[1644616307159,0.0469,42496.0,42491.0,0.07301282]
[1644616307659,0.0469,42496.0,42492.0,0.0004487]
[1644616307860,0.0969,42496.0,42492.0,0.0004487]
[1644616308260,0.155774,42496.0,42492.0,0.0004487]
[1644616309064,0.058874,42493.0,42485.0,0.18709362]
[1644616309365,0.25421904,42493.0,42485.0,0.18709362]
[1644616309663,0.155774,42496.0,42492.0,0.32117728]
[1644616309864,0.0969,42496.0,42492.0,0.32117728]
[1644616310064,0.05,42496.0,42487.0,0.35235945]
[1644616310309,0.05,42496.0,42488.0,0.1035976]
[1644616310710,0.05,42496.0,42493.0,0.31220837]
[1644616311110,0.35988828,42495.0,42486.0,0.05]
[1644616311313,0.00044852,42494.0,42485.0,0.117727]
[1644616311510,0.00044852,42494.0,42484.0,0.00044863]
[1644616311915,0.00044852,42494.0,42486.0,0.05]
[1644616312112,0.45988828,42495.0,42486.0,0.05]
[1644616312311,0.72667716,42495.0,42488.0,0.32063575]
[1644616312511,0.00044853,42491.0,42485.0,0.14213371]
[1644616312711,0.00044853,42491.0,42485.0,0.05]
[1644616313111,0.00044853,42491.0,42484.0,0.29303356]
[1644616313312,0.058873,42494.0,42484.0,0.29258495]
[1644616313513,0.058873,42494.0,42484.0,0.29303355]
[1644616313712,0.00044854,42490.0,42484.0,0.29303355]
[1644616313911,0.00044854,42490.0,42484.0,0.29324786]
[1644616314577,0.058873,42494.0,42484.0,0.29279926]
[1644616314771,0.058873,42493.0,42484.0,0.29324786]
[1644616314973,0.00044854,42489.0,42484.0,0.29324786]
[1644616315171,0.00044854,42489.0,42484.0,0.00066291]
[1644616315772,0.33893243,42492.0,42484.0,0.00021431]
[1644616315971,0.62776935,42492.0,42485.0,0.26334815]
[1644616316175,0.00040775,42489.0,42484.0,0.0006221]
[1644616316373,0.00040775,42489.0,42486.0,0.05]
[1644616316774,0.00040775,42489.0,42486.0,0.1444757]
[1644616316974,0.73641847,42495.0,42486.0,0.05021431]
[1644616317176,0.00040775,42490.0,42486.0,0.05021431]
[1644616317373,0.00040775,42490.0,42486.0,0.05]
[1644616318213,1.06196985,42495.0,42486.0,0.05]
[1644616318414,1.06196985,42495.0,42484.0,0.00062211]
[1644616318415,0.38442559,42488.0,42484.0,0.00062211]
[1644616318615,0.38442559,42488.0,42484.0,0.0004078]
[1644616318616,0.058884,42486.0,42484.0,0.0004078]
[1644616319015,0.158885,42487.0,42484.0,0.0004078]
[1644616319215,0.1,42487.0,42484.0,0.00062211]
[1644616319416,0.1,42487.0,42484.0,0.00021431]
[1644616319616,0.1,42487.0,42483.0,0.33567862]
[1644616320016,0.48483608,42488.0,42483.0,0.00172484]
[1644616320617,0.48442559,42488.0,42483.0,0.00131431]
[1644616320816,0.48483608,42488.0,42483.0,0.00172484]
[1644616321016,0.0693157,42485.0,42483.0,0.00172484]
[1644616321219,0.28663792,42487.0,42482.0,0.00241431]
[1644616321220,1.05,42483.0,42482.0,0.00241431]
[1644616321418,1.05,42483.0,42480.0,0.000862]
[1644616321419,0.1469,42483.0,42480.0,0.000862]
[1644616321665,0.1469,42483.0,42480.0,0.00107632]
[1644616322066,0.3361044,42483.0,42480.0,0.00107632]
[1644616322264,0.50653105,42482.0,42480.0,0.00107632]
[1644616322468,0.1,42482.0,42481.0,0.34463391]
[1644616322668,0.264688,42483.0,42481.0,0.34463391]
[1644616322669,0.0469,42483.0,42481.0,0.34463391]
[1644616323667,0.0469,42483.0,42480.0,0.00148668]
[1644616324366,0.0469,42483.0,42480.0,0.00107632]
[1644616326513,0.058881,42487.0,42481.0,0.25561001]
[1644616326715,0.009417,42496.0,42481.0,0.40873332]
[1644616327014,0.00041029,42487.0,42481.0,0.05]
[1644616327212,0.00041029,42487.0,42480.0,0.000862]
[1644616327213,0.00041029,42487.0,42482.0,0.09080915]
[1644616327412,0.00041029,42487.0,42480.0,0.000862]
[1644616327413,0.00041029,42487.0,42481.0,0.058871]
[1644616327617,0.00041029,42487.0,42482.0,0.14302504]
[1644616327814,0.32506725,42492.0,42486.0,0.39815798]
[1644616328014,0.00041031,42487.0,42486.0,0.39815798]
[1644616328215,0.00041031,42487.0,42486.0,0.49904719]
[1644616328415,0.117736,42496.0,42487.0,0.00044474]
[1644616328614,0.058868,42496.0,42487.0,0.04734474]
[1644616328814,0.39687407,42499.0,42487.0,0.04734474]
[1644616329073,0.28763184,42496.0,42490.0,0.31096455]
[1644616329262,0.117739,42495.0,42487.0,0.04734474]
[1644616329463,0.1,42497.0,42487.0,0.04734474]
[1644616329662,0.1,42496.0,42489.0,0.058866]
[1644616329862,0.1,42497.0,42489.0,0.058866]
[1644616329863,0.1,42497.0,42489.0,0.1624156]
[1644616330266,0.1,42497.0,42490.0,0.09516589]
[1644616330461,0.00026571,42495.0,42491.0,0.31135975]
[1644616330663,0.00026571,42495.0,42489.0,0.15235326]